bitfinex/quotes_SOLUSD_20230111
["timestamp","ask_amount","ask_price","bid_price","bid_amount"]
[1673478278619,45.74,16.403,16.382,45.8]
[1673478278828,45.73,16.405,16.39,21.27]
[1673478279046,20.0,16.402,16.384,45.79]
[1673478279256,45.74,16.401,16.385,20.0]
[1673478279565,20.0,16.4,16.385,20.0]
[1673478279764,64.67,16.399,16.381,45.8]
[1673478279998,20.0,16.398,16.381,45.8]
[1673478280202,47.67,16.397,16.371,45.83]
[1673478280518,20.0,16.396,16.371,45.83]
[1673478280915,20.0,16.396,16.372,20.0]
[1673478281126,20.0,16.396,16.373,45.82]
[1673478281347,1.92,16.395,16.374,1.92]
[1673478281548,45.76,16.395,16.375,45.82]
[1673478281768,20.0,16.394,16.376,1.92]
[1673478281966,20.0,16.394,16.377,45.81]
[1673478282176,20.0,16.394,16.378,1.92]
[1673478282388,20.0,16.394,16.379,45.8]
[1673478282599,20.0,16.394,16.38,18.92]
[1673478282810,20.0,16.394,16.381,45.8]
[1673478283018,20.0,16.394,16.382,17.96]
[1673478283539,20.0,16.394,16.383,45.79]
[1673478283746,20.0,16.394,16.384,17.0]
[1673478283975,20.0,16.394,16.383,45.79]
[1673478284178,20.0,16.394,16.373,45.82]
[1673478284385,20.0,16.394,16.374,20.0]
[1673478284586,20.0,16.396,16.375,45.82]
[1673478284821,45.74,16.403,16.38,106.34]
[1673478285027,65.74,16.403,16.382,20.0]
[1673478285351,65.74,16.403,16.383,64.71]
[1673478285546,17.65756032,16.389,16.383,64.71]
[1673478285762,17.65756032,16.389,16.384,20.0]
[1673478285959,17.65756032,16.389,16.385,64.71]
[1673478286169,17.65756032,16.389,16.386,20.0]
[1673478286379,17.65756032,16.389,16.387,64.7]
[1673478286589,65.74,16.403,16.388,20.0]
[1673478287006,0.96,16.399,16.388,20.0]
[1673478287241,65.74,16.401,16.383,20.0]
[1673478287451,65.74,16.401,16.384,45.79]
[1673478287641,65.74,16.401,16.385,20.0]
[1673478287854,20.0,16.401,16.386,45.78]
[1673478288077,20.0,16.401,16.387,20.0]
[1673478288275,0.96,16.399,16.387,20.0]
[1673478288795,0.96,16.398,16.383,20.0]
[1673478289008,0.96,16.398,16.384,45.79]
[1673478289222,0.96,16.399,16.385,20.0]
[1673478289429,1.92,16.399,16.385,20.0]
[1673478289861,1.92,16.399,16.383,45.79]
[1673478289862,18.92,16.399,16.383,45.79]
[1673478290051,18.92,16.399,16.38,106.25]
[1673478290052,20.0,16.397,16.381,45.8]
[1673478290261,20.0,16.395,16.372,45.82]
[1673478290475,17.96,16.394,16.372,45.82]
[1673478290683,111.0318,16.393,16.372,45.82]
[1673478290905,21.92,16.392,16.372,45.82]
[1673478291114,20.0,16.39,16.371,45.83]
[1673478291313,1.92,16.389,16.371,45.83]
[1673478292383,0.96,16.389,16.371,45.83]
[1673478292576,20.96,16.388,16.371,45.83]
[1673478292789,0.96,16.387,16.371,45.83]
[1673478293002,0.96,16.386,16.371,45.83]
[1673478293204,0.96,16.386,16.372,20.0]
[1673478293205,0.96,16.385,16.372,20.0]
[1673478293416,0.96,16.385,16.373,45.82]
[1673478293640,0.96,16.385,16.374,20.0]
[1673478293855,0.96,16.385,16.375,45.82]
[1673478294176,0.96,16.385,16.374,20.0]
[1673478294177,0.96,16.384,16.374,20.0]
[1673478294365,0.96,16.383,16.375,45.82]
[1673478294904,20.0,16.388,16.375,45.82]
[1673478295126,20.0,16.388,16.376,20.0]
[1673478295317,1.92,16.387,16.377,45.81]
[1673478295645,20.0,16.388,16.378,20.0]
[1673478296168,20.0,16.388,16.372,20.0]
[1673478296378,20.0,16.388,16.373,45.82]
[1673478296692,20.0,16.388,16.374,20.0]
[1673478297006,20.0,16.388,16.375,45.82]
[1673478297218,20.0,16.388,16.376,20.0]
[1673478297423,20.0,16.392,16.377,45.81]
[1673478297616,131.0318,16.393,16.378,20.0]
[1673478297831,111.0318,16.393,16.379,63.76]
[1673478298046,20.0,16.392,16.379,62.8]
[1673478298998,20.0,16.392,16.379,45.8]
[1673478300487,0.96,16.391,16.379,45.8]
[1673478302037,20.0,16.392,16.379,45.8]
[1673478302250,111.0318,16.393,16.379,45.8]
[1673478302462,111.0318,16.393,16.38,38.2]
[1673478302682,111.0318,16.393,16.381,45.8]
[1673478302899,111.0318,16.393,16.382,17.0]
[1673478303096,111.0318,16.393,16.383,45.79]
[1673478303515,45.75,16.399,16.384,20.0]
[1673478303742,135.6929,16.401,16.385,84.71]
[1673478303959,135.6929,16.401,16.39,21.27]
[1673478304902,115.6929,16.401,16.39,21.27]
[1673478305211,20.0,16.4,16.39,21.27]
[1673478305836,20.0,16.4,16.386,45.78]
[1673478306047,20.0,16.4,16.387,20.0]
[1673478306371,1.92,16.399,16.387,20.0]
[1673478306793,1.92,16.399,16.383,20.0]
[1673478306992,1.92,16.399,16.384,45.79]
[1673478307411,45.75,16.398,16.381,45.8]
[1673478307723,20.0,16.396,16.381,45.8]
[1673478307937,0.96,16.395,16.381,45.8]
[1673478308160,1.92,16.395,16.381,45.8]
[1673478308362,65.76,16.396,16.381,45.8]
[1673478308564,0.96,16.395,16.381,45.8]
[1673478308779,1.92,16.395,16.381,45.8]
[1673478308995,0.96,16.395,16.381,45.8]
[1673478309209,1.92,16.395,16.381,45.8]
[1673478309422,0.96,16.395,16.381,45.8]
[1673478309630,20.0,16.394,16.381,45.8]
[1673478310480,1.92,16.393,16.381,45.8]
[1673478310680,1.92,16.393,16.38,21.26]
[1673478312251,1.92,16.393,16.381,45.8]
[1673478312991,1.92,16.393,16.38,21.26]
[1673478313206,1.92,16.393,16.381,45.8]
[1673478313417,20.0,16.392,16.381,45.8]
[1673478313738,20.0,16.392,16.37,106.27]
[1673478313739,20.0,16.39,16.371,45.83]
[1673478313922,20.0,16.39,16.372,20.0]
[1673478314142,20.0,16.39,16.373,45.82]
[1673478314471,1.92,16.389,16.374,20.0]
[1673478314659,1.92,16.389,16.375,45.82]
[1673478314865,1.92,16.389,16.376,20.0]
[1673478315080,1.92,16.389,16.377,45.81]
[1673478315295,1.92,16.389,16.378,20.0]
[1673478315515,20.0,16.388,16.379,45.8]
[1673478315722,1.92,16.387,16.379,45.8]
[1673478319518,0.96,16.387,16.379,45.8]
[1673478319830,20.0,16.388,16.379,45.8]
[1673478320032,20.0,16.39,16.379,45.8]
[1673478320250,139.1788,16.398,16.379,45.8]
[1673478320440,119.1788,16.398,16.38,145.27]
[1673478320643,119.1788,16.398,16.382,20.0]
[1673478320876,119.1788,16.398,16.383,86.6227]
[1673478321407,119.1788,16.398,16.383,84.7027]
[1673478322658,20.0,16.397,16.383,84.7027]
[1673478322882,20.0,16.397,16.383,67.7027]
[1673478323405,20.0,16.395,16.383,67.7027]
[1673478323598,0.96,16.394,16.383,67.7027]
[1673478323806,119.1788,16.398,16.383,67.7027]
[1673478324018,0.96,16.397,16.383,67.7027]
[1673478324244,119.1788,16.398,16.383,67.7027]
[1673478324878,119.1788,16.398,16.385,1.9127]
[1673478325079,119.1788,16.398,16.387,1.9127]
[1673478325302,20.0,16.397,16.387,20.0]
[1673478325702,1.92,16.396,16.385,20.0]
[1673478325913,1.92,16.396,16.381,45.8]
[1673478325914,1.92,16.396,16.382,20.0]
[1673478326130,119.1788,16.398,16.383,45.79]
[1673478326343,119.1788,16.398,16.384,20.0]
[1673478326559,119.1788,16.398,16.385,62.79]
[1673478326877,119.1788,16.398,16.386,20.0]
[1673478327086,20.0,16.397,16.387,45.78]
[1673478327302,20.0,16.397,16.388,20.0]
[1673478327491,20.0,16.397,16.386,20.0]
[1673478327930,20.0,16.397,16.383,20.0]
[1673478328141,20.0,16.397,16.384,45.79]
[1673478328330,20.0,16.397,16.385,20.0]
[1673478328535,20.0,16.397,16.386,45.78]
[1673478328784,20.0,16.397,16.382,45.8]
[1673478328964,139.1788,16.398,16.383,1.92]
[1673478328965,119.1788,16.398,16.383,1.92]
[1673478329169,119.1788,16.398,16.384,45.79]
[1673478329606,119.1788,16.398,16.382,45.8]
[1673478329810,119.1788,16.398,16.383,20.0]
[1673478330033,115.6744,16.401,16.39,21.27]
[1673478330220,115.6744,16.401,16.391,45.77]
[1673478331913,20.0,16.405,16.391,45.77]
[1673478332116,20.0,16.405,16.392,17.0]
[1673478332327,20.0,16.405,16.393,45.77]
[1673478332566,20.0,16.405,16.391,45.77]
[1673478333184,115.2443,16.406,16.392,20.0]
[1673478333384,115.2443,16.406,16.393,62.77]
[1673478333707,115.2443,16.406,16.394,20.0]
[1673478333708,20.0,16.405,16.394,20.0]
[1673478333910,20.0,16.405,16.395,45.76]
[1673478334123,115.2443,16.406,16.396,20.0]
[1673478334327,115.2443,16.406,16.4,21.27]
[1673478334540,82.37,16.411,16.4,21.27]
[1673478334742,20.0,16.411,16.4,21.27]
[1673478334950,45.7,16.418,16.4,106.35]
[1673478335162,139.1898,16.419,16.401,84.66]
[1673478335377,139.1898,16.419,16.401,83.7]
[1673478335378,20.0,16.415,16.401,83.7]
[1673478335577,20.0,16.415,16.401,62.74]
[1673478336225,20.0,16.415,16.401,45.74]
[1673478336414,20.0,16.415,16.402,17.0]
[1673478336623,45.7,16.417,16.402,17.0]
[1673478336838,20.0,16.418,16.403,45.74]
[1673478337269,119.1898,16.419,16.41,21.2]
[1673478337597,20.0,16.418,16.41,21.2]
[1673478337803,45.7,16.418,16.41,21.2]
[1673478338119,119.1898,16.419,16.41,21.2]
[1673478338324,20.0,16.418,16.41,21.2]
[1673478339354,164.8798,16.419,16.41,21.2]
[1673478339570,119.1898,16.419,16.41,21.2]
[1673478339988,45.68,16.423,16.41,21.2]
[1673478340203,204.9590519,16.425,16.411,82.72]
[1673478341039,204.9590519,16.425,16.412,0.96]
[1673478341245,204.9590519,16.425,16.42,21.25]
[1673478343795,204.9590519,16.425,16.421,17.0]
[1673478345464,204.9590519,16.425,16.42,21.25]
[1673478345674,204.9590519,16.425,16.42,21.11]
[1673478345880,204.9590519,16.425,16.41,21.07]
[1673478346102,45.68,16.424,16.41,21.07]
[1673478346313,204.9590519,16.425,16.41,21.07]
[1673478346516,20.0,16.424,16.411,45.72]
[1673478346725,20.0,16.424,16.41,106.15]
[1673478347052,0.96,16.423,16.41,106.15]
[1673478347248,65.68,16.424,16.41,106.15]
[1673478347590,20.0,16.424,16.411,45.72]
[1673478347766,20.0,16.424,16.41,106.15]
[1673478348098,65.68,16.424,16.411,45.72]
[1673478348422,20.0,16.424,16.41,106.15]
[1673478348610,65.68,16.424,16.411,45.72]
[1673478348820,20.0,16.424,16.411,45.72]
[1673478349560,20.0,16.424,16.41,118.05]
[1673478349882,18.92,16.423,16.41,118.05]
[1673478350111,45.68,16.422,16.41,118.05]
[1673478350316,21.92,16.421,16.41,118.05]
[1673478350629,38.92,16.421,16.41,118.05]
[1673478350814,21.92,16.421,16.41,118.05]
[1673478351440,17.0,16.42,16.41,118.05]
[1673478351674,21.92,16.419,16.41,118.05]
[1673478352085,65.68,16.422,16.41,118.05]
[1673478352289,65.68,16.424,16.41,118.05]
[1673478352501,363.8816519,16.425,16.411,45.72]
[1673478352703,318.2016519,16.425,16.42,23.41]
[1673478352914,20.0,16.424,16.42,23.41]
[1673478353122,20.0,16.424,16.413,45.71]
[1673478353357,204.9590519,16.425,16.411,45.72]
[1673478353560,20.0,16.424,16.41,23.82]
[1673478353885,20.0,16.422,16.41,118.18]
[1673478354066,20.0,16.422,16.41,118.42]
[1673478354278,20.0,16.424,16.411,45.72]
[1673478355330,0.96,16.423,16.411,45.72]
[1673478355541,0.96,16.422,16.41,118.42]
[1673478356267,20.0,16.424,16.411,45.72]
[1673478356477,45.68,16.423,16.41,118.42]
[1673478356711,20.0,16.422,16.411,45.72]
[1673478356904,20.0,16.422,16.41,118.42]
[1673478357113,20.0,16.422,16.411,45.72]
[1673478357869,0.96,16.421,16.41,118.42]
[1673478358263,20.0,16.422,16.41,118.42]
[1673478358491,20.0,16.422,16.411,62.72]
[1673478359016,20.0,16.422,16.411,45.72]
[1673478359847,0.96,16.421,16.411,45.72]
[1673478360070,20.0,16.422,16.411,45.72]
[1673478360391,20.0,16.424,16.411,45.72]
[1673478360703,204.9590519,16.425,16.412,17.0]
[1673478360914,204.9590519,16.425,16.42,23.46]
[1673478361333,204.9590519,16.425,16.42,118.24]
[1673478361532,204.9590519,16.425,16.421,45.69]
[1673478362804,204.9590519,16.425,16.422,17.0]
[1673478363418,204.9590519,16.425,16.421,45.69]
[1673478363834,204.9590519,16.425,16.422,17.0]
[1673478364055,204.9590519,16.425,16.423,45.68]
[1673478364488,204.9590519,16.425,16.424,17.0]
[1673478364698,204.9590519,16.425,16.424,62.68]
[1673478365226,204.9590519,16.425,16.424,45.68]
[1673478365414,204.9590519,16.425,16.421,20.0]
[1673478365636,204.9590519,16.425,16.422,64.6]
[1673478366043,204.9590519,16.425,16.423,18.5]
[1673478366251,204.9590519,16.425,16.424,64.6]
[1673478366892,204.9590519,16.425,16.424,84.6]
[1673478370773,204.9590519,16.425,16.424,111.31896182]
[1673478371206,204.9590519,16.425,16.424,84.6]
[1673478372259,204.9590519,16.425,16.424,61.57229612]
[1673478372472,204.9590519,16.425,16.42,117.83]
[1673478372694,204.9590519,16.425,16.424,43.12797858]
[1673478372888,204.9590519,16.425,16.424,88.80797858]
[1673478373520,204.9590519,16.425,16.424,108.80797858]
[1673478373715,204.9590519,16.425,16.424,84.6]
[1673478376131,0.0090519,16.425,16.424,84.6]
[1673478376340,43.5508095,16.438,16.425,20.0]
[1673478376675,43.5508095,16.438,16.43,46.89]
[1673478376994,43.5508095,16.438,16.431,37.0]
[1673478377395,43.5508095,16.438,16.431,20.0]
[1673478379079,43.5508095,16.438,16.432,45.66]
[1673478379299,43.5508095,16.438,16.433,20.0]
[1673478380017,43.5508095,16.438,16.434,63.61]
[1673478380228,43.5508095,16.438,16.435,20.0]
[1673478380452,27.6213095,16.438,16.435,65.65]
[1673478380671,27.6213095,16.438,16.436,1.9127]
[1673478380880,27.6213095,16.438,16.436,18.9127]
[1673478381076,27.6213095,16.438,16.437,20.96]
[1673478381294,27.6213095,16.438,16.437,39.8727]
[1673478381502,27.6213095,16.438,16.437,21.9127]
[1673478381716,27.6213095,16.438,16.437,1.9127]
[1673478381929,27.6213095,16.438,16.434,1.9127]
[1673478382140,27.6213095,16.438,16.43,117.75]
[1673478382353,27.6213095,16.438,16.43,23.65]
[1673478383394,0.96,16.437,16.43,0.0001]
[1673478383617,20.96,16.437,16.43,23.47]
[1673478383808,20.96,16.437,16.421,45.69]
[1673478383809,20.0,16.435,16.421,45.69]
[1673478384653,0.96,16.434,16.42,117.41]
[1673478385187,0.96,16.434,16.421,20.0]
[1673478385596,20.0,16.435,16.421,20.0]
[1673478386234,0.96,16.434,16.421,20.0]
[1673478386763,20.0,16.435,16.421,20.0]
[1673478386977,20.0,16.435,16.421,65.69]
[1673478387188,0.96,16.434,16.421,65.69]
[1673478387380,18.92,16.434,16.421,20.0]
[1673478387594,20.0,16.433,16.421,20.0]
[1673478388224,20.0,16.433,16.421,65.69]
[1673478389918,0.96,16.432,16.421,20.0]
[1673478390130,0.96,16.431,16.42,117.41]
[1673478390346,0.96,16.43,16.42,117.41]
[1673478390541,0.96,16.429,16.42,117.41]
[1673478390747,0.96,16.428,16.42,117.41]
[1673478390958,20.0,16.429,16.42,117.41]
[1673478391707,0.96,16.428,16.42,117.41]
[1673478392021,65.64,16.437,16.421,45.69]
[1673478392229,20.0,16.437,16.421,45.69]
[1673478392441,178.8021,16.435,16.421,45.69]
[1673478392850,178.8021,16.435,16.42,117.41]
[1673478393067,45.66,16.432,16.41,117.46]
[1673478393381,45.66,16.432,16.41,46.94]
[1673478393382,24.54822,16.431,16.41,46.94]
[1673478393585,51.28822,16.43,16.41,46.94]
[1673478393912,20.0,16.428,16.41,23.6]
[1673478394129,72.25822,16.427,16.401,45.74]
[1673478394342,23.58822,16.426,16.401,45.74]
[1673478394545,302.35772,16.425,16.4,23.32]
[1673478394739,20.0,16.423,16.401,45.74]
[1673478395072,69.26822,16.422,16.401,45.74]
[1673478395386,69.26822,16.422,16.4,23.32]
[1673478395387,6.58822,16.421,16.4,23.32]
[1673478395581,20.0,16.419,16.392,20.0]
[1673478395800,47.62,16.418,16.393,76.51811009]
[1673478396002,64.62,16.418,16.393,45.77]
[1673478396224,64.62,16.418,16.4,47.0]
[1673478396552,20.0,16.416,16.393,45.77]
[1673478396758,20.0,16.414,16.391,45.77]
[1673478396965,88.33822,16.413,16.391,45.77]
[1673478397168,6.58822,16.412,16.391,45.77]
[1673478397370,63.68,16.411,16.391,45.77]
[1673478397581,20.0,16.41,16.391,45.77]
[1673478397790,47.64,16.409,16.391,45.77]
[1673478398020,37.0,16.408,16.391,45.77]
[1673478398234,47.65,16.407,16.391,45.77]
[1673478398446,17.0,16.406,16.39,117.42]
[1673478398753,20.0,16.404,16.391,45.77]
[1673478398967,46.7,16.403,16.39,117.42]
[1673478399180,0.96,16.402,16.39,117.42]
[1673478399392,0.96,16.402,16.39,117.10944]
[1673478399708,65.73,16.404,16.39,117.10944]
[1673478399918,1.92,16.403,16.39,117.10944]
[1673478400232,0.96,16.403,16.39,117.10944]
[1673478400440,0.96,16.402,16.39,23.53]
[1673478400752,45.74,16.402,16.39,23.53]
[1673478400964,20.0,16.401,16.39,23.53]
[1673478401175,1.92,16.4,16.39,23.53]
[1673478401800,0.96,16.4,16.39,23.53]
[1673478402210,0.96,16.399,16.39,23.53]
[1673478402426,0.96,16.398,16.39,23.53]
[1673478402634,0.96,16.397,16.39,23.53]
[1673478402839,0.96,16.396,16.39,23.53]
[1673478403048,0.96,16.395,16.39,19.5975]
[1673478403253,0.96,16.395,16.381,45.8]
[1673478403254,0.96,16.394,16.381,45.8]
[1673478405793,0.96,16.393,16.381,45.8]
[1673478406030,20.0,16.395,16.381,45.8]
[1673478406619,1.92,16.394,16.381,45.8]
[1673478406833,7.54822,16.394,16.38,117.95]
[1673478407039,6.58822,16.394,16.381,45.8]
[1673478407268,0.96,16.394,16.381,45.8]
[1673478407464,0.96,16.393,16.381,45.8]
[1673478407678,17.96,16.394,16.381,45.8]
[1673478407679,0.96,16.394,16.381,45.8]
[1673478408103,1.92,16.394,16.381,45.8]
[1673478408328,0.96,16.393,16.381,45.8]
[1673478408522,0.96,16.392,16.381,45.8]
[1673478408740,0.96,16.391,16.381,45.8]
[1673478409066,20.96,16.391,16.381,45.8]
[1673478409249,0.96,16.39,16.381,45.8]
[1673478409455,0.96,16.39,16.375,131.65814451]
[1673478409456,46.74,16.389,16.375,131.65814451]
[1673478409683,1.1617512,16.387,16.375,42.68734451]
[1673478409917,1.1617512,16.385,16.374,267.62128967]
[1673478410097,1.1617512,16.383,16.374,267.62128967]
[1673478410308,1.1617512,16.381,16.374,267.62128967]
[1673478410512,25.62822,16.383,16.374,267.62128967]
[1673478410723,0.96,16.381,16.374,267.62128967]
[1673478411274,0.96,16.38,16.374,267.62128967]
[1673478411612,0.96,16.38,16.363,45.85]
[1673478411613,0.96,16.379,16.363,45.85]
[1673478411917,73.5599712,16.378,16.362,157.36164461]
[1673478412112,1.1617512,16.376,16.362,157.36164461]
[1673478412337,1.1617512,16.374,16.362,157.36164461]
[1673478412531,18.1617512,16.374,16.362,157.36164461]
[1673478412748,0.96,16.373,16.362,157.36164461]
[1673478412966,1.1617512,16.372,16.362,157.36164461]
[1673478413823,65.82,16.375,16.362,157.36164461]
[1673478414147,20.0,16.395,16.37,23.73]
[1673478414349,20.0,16.395,16.371,45.83]
[1673478414531,20.0,16.395,16.372,20.0]
[1673478414744,25.62822,16.393,16.373,45.82]
[1673478414962,25.62822,16.393,16.38,23.65]
[1673478415166,25.62822,16.393,16.381,45.8]
[1673478415167,5.62822,16.393,16.381,45.8]
[1673478415374,45.75,16.4,16.382,17.0]
[1673478415594,65.74,16.402,16.383,45.79]
[1673478415811,65.74,16.402,16.381,45.8]
[1673478416007,65.74,16.402,16.39,23.73]
[1673478417290,65.74,16.402,16.39,23.67]
[1673478417597,255.34,16.402,16.381,45.8]
[1673478417815,51.37822,16.398,16.381,45.8]
[1673478418001,25.62822,16.397,16.381,45.8]
[1673478418206,25.62822,16.397,16.377,45.81]
[1673478418437,25.62822,16.397,16.38,118.45]
[1673478418651,20.0,16.397,16.381,45.8]
[1673478420029,45.75,16.4,16.39,23.69]
[1673478420244,309.1329,16.407,16.391,20.0]
[1673478420245,65.74,16.403,16.391,20.0]
[1673478420451,5.62822,16.402,16.391,20.0]
[1673478421344,18.92,16.401,16.391,20.0]
[1673478421614,5.62822,16.401,16.391,20.0]
[1673478422973,18.92,16.4,16.391,20.0]
[1673478423189,16.95144004,16.4,16.391,20.0]
[1673478423399,5.62822,16.401,16.391,20.0]
[1673478425394,18.92,16.4,16.391,20.0]
[1673478425623,24.54822,16.4,16.391,20.0]
[1673478425818,24.54822,16.4,16.39,23.69]
[1673478426031,24.54822,16.4,16.382,45.8]
[1673478426032,45.75,16.399,16.382,45.8]
[1673478426247,20.0,16.398,16.381,45.8]
[1673478426450,18.92,16.397,16.381,45.8]
[1673478427800,45.76,16.396,16.381,45.8]
[1673478428018,1.92,16.395,16.381,45.8]
[1673478428225,1.92,16.397,16.382,20.0]
[1673478428438,1.92,16.397,16.383,45.79]
[1673478428654,1.92,16.397,16.39,23.69]
[1673478429718,18.92,16.397,16.39,23.69]
[1673478430137,51.37822,16.4,16.39,23.69]
[1673478430345,51.37822,16.4,16.385,45.79]
[1673478430742,5.62822,16.4,16.385,45.79]
[1673478431500,20.0,16.398,16.381,45.8]
[1673478431820,51.37822,16.397,16.38,118.5]
[1673478432027,20.0,16.396,16.38,118.5]
[1673478432348,47.68,16.395,16.381,45.8]
[1673478432566,64.68,16.395,16.381,45.8]
[1673478432744,25.62822,16.394,16.38,23.74]
[1673478432951,20.0,16.392,16.38,23.74]
[1673478433276,23.58822,16.391,16.38,23.74]
[1673478433609,23.58822,16.391,16.36,237.12]
[1673478433610,189.6,16.389,16.364,45.85]
[1673478433799,189.6,16.389,16.362,157.36164461]
[1673478433800,189.6,16.387,16.363,45.85]
[1673478434017,279.1699712,16.386,16.362,157.36164461]
[1673478434349,26.58822,16.385,16.362,157.36164461]
[1673478434537,119.3329,16.387,16.362,157.36164461]
[1673478434538,45.79,16.384,16.371,20.0]
[1673478434654,119.3329,16.387,16.371,65.83]
[1673478434932,45.77,16.391,16.38,25.33]
[1673478435193,5.62822,16.39,16.38,25.33]
[1673478435383,20.0,16.388,16.371,45.83]
[1673478435596,20.0,16.388,16.37,127.04]
[1673478435597,51.40822,16.387,16.37,127.04]
[1673478435801,5.62822,16.386,16.37,127.04]
[1673478436013,45.79,16.385,16.37,25.28]
[1673478436219,64.54822,16.384,16.37,25.28]
[1673478436433,20.0,16.382,16.37,25.28]
[1673478436642,47.72,16.381,16.37,25.28]
[1673478436970,0.96,16.381,16.37,127.04]
[1673478437494,0.96,16.38,16.37,127.04]
[1673478437808,0.96,16.379,16.37,127.05]
[1673478438072,0.96,16.379,16.37,127.27]
[1673478438221,20.0,16.382,16.37,127.27]
[1673478438560,0.96,16.381,16.37,127.27]
[1673478438739,45.78,16.387,16.37,127.27]
[1673478438868,45.78,16.387,16.38,25.41]
[1673478439067,45.78,16.388,16.38,25.41]
[1673478439266,45.77,16.391,16.38,25.41]
[1673478439479,45.77,16.391,16.37,127.29]
[1673478439480,195.22822,16.39,16.37,127.29]
[1673478439689,20.0,16.395,16.37,25.65]
[1673478439690,261.00822,16.389,16.37,25.65]
[1673478439899,20.0,16.387,16.37,25.65]
[1673478440126,71.40822,16.386,16.37,25.65]
[1673478440318,5.62822,16.385,16.38,25.41]
[1673478440536,45.77,16.391,16.38,127.32]
[1673478440749,45.77,16.392,16.38,127.32]
[1673478440962,45.77,16.393,16.38,127.32]
[1673478441272,45.76,16.394,16.38,127.32]
[1673478441488,20.0,16.393,16.38,127.32]
[1673478442016,45.77,16.392,16.38,25.64]
[1673478442224,20.0,16.391,16.38,25.64]
[1673478442493,45.76,16.394,16.38,127.07]
[1673478442638,20.0,16.399,16.38,127.07]
[1673478442639,45.75,16.397,16.381,65.8]
[1673478442846,45.75,16.397,16.39,25.23]
[1673478443278,65.75,16.398,16.39,25.23]
[1673478445186,45.75,16.398,16.39,25.23]
[1673478445401,45.75,16.399,16.39,25.23]
[1673478445690,45.74,16.401,16.39,25.65]
[1673478447009,65.74,16.402,16.39,127.29]
[1673478447160,17.0,16.401,16.39,127.29]
[1673478447377,1.92,16.4,16.39,127.29]